[Event "Live Chess"]
[Site "Chess.com"]
[Date "2024.06.02"]
[Round "-"]
[White "upoe610"]
[Black "willc-h99"]
[Result "0-1"]
[WhiteElo "2134"]
[BlackElo "2623"]
[TimeControl "300"]
[EndTime "3:18:53 PDT"]
[Termination "willc-h99 won by resignation"]

1. c4 {[%clk 0:04:49.3]} 1... Nf6 {[%clk 0:04:57.1]} 2. g3 {[%clk 0:04:46.8]}
2... g6 {[%clk 0:04:52.4]} 3. Bg2 {[%clk 0:04:45.6]} 3... Bg7 {[%clk 0:04:51.7]}
4. Nc3 {[%clk 0:04:44.4]} 4... O-O {[%clk 0:04:49.8]} 5. d4 {[%clk 0:04:43.8]}
5... d6 {[%clk 0:04:46.5]} 6. h3 {[%clk 0:04:42.7]} 6... Nbd7 {[%clk 0:04:42.4]}
7. Nf3 {[%clk 0:04:41.1]} 7... c6 {[%clk 0:04:41.6]} 8. e4 {[%clk 0:04:39.7]}
8... Qc7 {[%clk 0:04:39]} 9. Be3 {[%clk 0:04:38.4]} 9... e5 {[%clk 0:04:36.8]}
10. O-O {[%clk 0:04:36.6]} 10... a6 {[%clk 0:04:34.5]} 11. b3 {[%clk 0:04:31.6]}
11... Re8 {[%clk 0:04:28.6]} 12. Rc1 {[%clk 0:04:28.6]} 12... exd4 {[%clk
0:04:17.1]} 13. Nxd4 {[%clk 0:04:27.3]} 13... Nc5 {[%clk 0:04:04.9]} 14. Qc2
{[%clk 0:04:19.7]} 14... a5 {[%clk 0:04:03.8]} 15. a3 {[%clk 0:04:17.9]} 15...
Bd7 {[%clk 0:03:41.2]} 16. b4 {[%clk 0:04:15.7]} 16... axb4 {[%clk 0:03:40]} 17.
axb4 {[%clk 0:04:15.6]} 17... Ne6 {[%clk 0:03:39.6]} 18. Nce2 {[%clk 0:04:13.1]}
18... Nxd4 {[%clk 0:03:25.5]} 19. Nxd4 {[%clk 0:04:12]} 19... c5 {[%clk
0:03:17.5]} 20. bxc5 {[%clk 0:04:07.3]} 20... dxc5 {[%clk 0:03:16]} 21. Nb5
{[%clk 0:04:06.5]} 21... Bxb5 {[%clk 0:03:06.8]} 22. cxb5 {[%clk 0:04:06.4]}
22... Nd7 {[%clk 0:03:05.5]} 23. Bxc5 {[%clk 0:03:58.7]} 23... Rec8 {[%clk
0:03:02.8]} 24. e5 {[%clk 0:03:40.3]} 24... Nxc5 {[%clk 0:02:58.1]} 25. b6
{[%clk 0:03:37.5]} 25... Qxb6 {[%clk 0:02:53.3]} 26. Rb1 {[%clk 0:03:36.3]}
26... Qc7 {[%clk 0:02:42.9]} 27. Rfc1 {[%clk 0:03:34.5]} 27... Qxe5 {[%clk
0:02:41]} 28. Rb5 {[%clk 0:03:24.8]} 28... Bf8 {[%clk 0:02:33.5]} 29. Bxb7
{[%clk 0:03:22.7]} 29... Rab8 {[%clk 0:02:24.3]} 30. Qb1 {[%clk 0:03:00.3]}
30... Rc7 {[%clk 0:02:14.4]} 31. Bg2 {[%clk 0:02:54.8]} 31... Rxb5 {[%clk
0:02:11.5]} 32. Qxb5 {[%clk 0:02:53.4]} 32... h5 {[%clk 0:02:03.5]} 33. Qb8
{[%clk 0:02:50.2]} 33... Qd6 {[%clk 0:01:54.2]} 34. Bd5 {[%clk 0:02:42.4]} 34...
h4 {[%clk 0:01:48.6]} 35. Rd1 {[%clk 0:02:35.2]} 35... Qe5 {[%clk 0:01:40]} 36.
gxh4 {[%clk 0:02:25.3]} 36... Kg7 {[%clk 0:01:37.7]} 37. Kg2 {[%clk 0:02:22.7]}
37... Bd6 {[%clk 0:01:35.4]} 38. Qb4 {[%clk 0:02:02.5]} 38... Qh2+ {[%clk
0:01:32.9]} 39. Kf3 {[%clk 0:02:00.9]} 39... Qxh3+ {[%clk 0:01:27.6]} 40. Ke2
{[%clk 0:02:00.1]} 40... Re7+ {[%clk 0:01:25.5]} 41. Kd2 {[%clk 0:01:54]} 41...
Ne4+ {[%clk 0:01:22.7]} 0-1

[Event "Live Chess"]
[Site "Chess.com"]
[Date "2024.06.02"]
[Round "-"]
[White "Ferrarifan27"]
[Black "Frankie_Badacsonyi"]
[Result "1-0"]
[WhiteElo "2153"]
[BlackElo "2374"]
[TimeControl "300"]
[EndTime "3:18:57 PDT"]
[Termination "Ferrarifan27 won by resignation"]

1. e4 {[%clk 0:04:55.1]} 1... c6 {[%clk 0:04:59]} 2. d4 {[%clk 0:04:46.7]} 2...
d5 {[%clk 0:04:57.9]} 3. e5 {[%clk 0:04:45.3]} 3... Bf5 {[%clk 0:04:55.6]} 4. h4
{[%clk 0:04:39.2]} 4... h5 {[%clk 0:04:54.3]} 5. Bg5 {[%clk 0:04:36.2]} 5... Qb6
{[%clk 0:04:49.7]} 6. Bd3 {[%clk 0:04:33.2]} 6... Bxd3 {[%clk 0:04:48.4]} 7.
Qxd3 {[%clk 0:04:31.5]} 7... Qa6 {[%clk 0:04:47.7]} 8. Qxa6 {[%clk 0:04:28.4]}
8... Nxa6 {[%clk 0:04:47.6]} 9. c3 {[%clk 0:04:20.5]} 9... e6 {[%clk 0:04:46.7]}
10. Nf3 {[%clk 0:04:18.9]} 10... c5 {[%clk 0:04:43.7]} 11. O-O {[%clk
0:04:14.1]} 11... Ne7 {[%clk 0:04:39.7]} 12. Na3 {[%clk 0:04:06.3]} 12... Nf5
{[%clk 0:04:24]} 13. Nb5 {[%clk 0:03:57.6]} 13... Kd7 {[%clk 0:04:20.4]} 14.
Rfd1 {[%clk 0:03:52.5]} 14... cxd4 {[%clk 0:04:10.5]} 15. Nbxd4 {[%clk
0:03:50.8]} 15... Nxd4 {[%clk 0:04:07.9]} 16. cxd4 {[%clk 0:03:44.8]} 16... Be7
{[%clk 0:03:59.6]} 17. Rac1 {[%clk 0:03:40.5]} 17... Rac8 {[%clk 0:03:57.2]} 18.
a3 {[%clk 0:03:39.5]} 18... Nb8 {[%clk 0:03:52.7]} 19. Bxe7 {[%clk 0:03:36.4]}
19... Kxe7 {[%clk 0:03:52.2]} 20. Kf1 {[%clk 0:03:35.1]} 20... Nc6 {[%clk
0:03:49.9]} 21. Ke2 {[%clk 0:03:33.2]} 21... f6 {[%clk 0:03:49]} 22. exf6+
{[%clk 0:03:31.1]} 22... gxf6 {[%clk 0:03:48.9]} 23. Kd3 {[%clk 0:03:28.6]}
23... Kd6 {[%clk 0:03:47.9]} 24. g3 {[%clk 0:03:20.8]} 24... Rhf8 {[%clk
0:03:43.3]} 25. b4 {[%clk 0:03:14.1]} 25... e5 {[%clk 0:03:40.9]} 26. Ke3 {[%clk
0:03:06.1]} 26... Rce8 {[%clk 0:03:26.7]} 27. dxe5+ {[%clk 0:03:04]} 27... fxe5
{[%clk 0:03:20.3]} 28. Rc5 {[%clk 0:02:57.3]} 28... d4+ {[%clk 0:03:16.4]} 29.
Ke4 {[%clk 0:02:55.5]} 29... a6 {[%clk 0:02:15.4]} 30. Rd5+ {[%clk 0:02:51.6]}
30... Kc7 {[%clk 0:02:14.6]} 31. Rc1 {[%clk 0:02:47.5]} 31... Kb6 {[%clk
0:01:54]} 32. Rc2 {[%clk 0:02:44]} 32... Rd8 {[%clk 0:01:26.4]} 33. Rxd8 {[%clk
0:02:37.8]} 33... Rxd8 {[%clk 0:01:26.3]} 34. Nxe5 {[%clk 0:02:34.9]} 34... Re8
{[%clk 0:01:15.3]} 35. f4 {[%clk 0:02:33.8]} 35... Rg8 {[%clk 0:01:06.1]} 36.
Kf3 {[%clk 0:02:28.8]} 36... Ne7 {[%clk 0:01:00.6]} 37. Nd7+ {[%clk 0:01:56.7]}
37... Kb5 {[%clk 0:00:59.2]} 38. Nf6 {[%clk 0:01:39.4]} 38... Rh8 {[%clk
0:00:50.5]} 39. Rc7 {[%clk 0:01:32.2]} 39... Nf5 {[%clk 0:00:41.4]} 40. Rc5+
{[%clk 0:01:30.9]} 1-0

[Event "Live Chess"]
[Site "Chess.com"]
[Date "2024.06.02"]
[Round "-"]
[White "dmitro74"]
[Black "Brooms1989"]
[Result "0-1"]
[WhiteElo "1710"]
[BlackElo "1224"]
[TimeControl "300"]
[EndTime "3:18:58 PDT"]
[Termination "Brooms1989 won on time"]

1. d4 {[%clk 0:04:57.2]} 1... Nf6 {[%clk 0:04:58.6]} 2. c4 {[%clk 0:04:55.9]}
2... g6 {[%clk 0:04:58.1]} 3. Nc3 {[%clk 0:04:55]} 3... Bg7 {[%clk 0:04:57.7]}
4. e4 {[%clk 0:04:53.6]} 4... d6 {[%clk 0:04:56.3]} 5. f4 {[%clk 0:04:52]} 5...
e5 {[%clk 0:04:49.9]} 6. fxe5 {[%clk 0:04:50]} 6... Ng4 {[%clk 0:04:47.4]} 7.
Nf3 {[%clk 0:04:41.1]} 7... dxe5 {[%clk 0:04:44.3]} 8. d5 {[%clk 0:04:39.4]}
8... O-O {[%clk 0:04:30.6]} 9. h3 {[%clk 0:04:36.5]} 9... Nh6 {[%clk 0:04:25.9]}
10. Bd3 {[%clk 0:04:27.8]} 10... f5 {[%clk 0:04:22.6]} 11. O-O {[%clk
0:04:22.1]} 11... f4 {[%clk 0:04:10.5]} 12. b3 {[%clk 0:04:04.9]} 12... g5
{[%clk 0:04:05.2]} 13. Ba3 {[%clk 0:04:02.8]} 13... Re8 {[%clk 0:03:58.9]} 14.
Rc1 {[%clk 0:03:58.2]} 14... g4 {[%clk 0:03:56.5]} 15. hxg4 {[%clk 0:03:55]}
15... Bxg4 {[%clk 0:03:52.3]} 16. Be2 {[%clk 0:03:45.3]} 16... Re7 {[%clk
0:03:27.7]} 17. Ng5 {[%clk 0:03:33.5]} 17... Bxe2 {[%clk 0:03:22.5]} 18. Qxe2
{[%clk 0:03:31.9]} 18... Re8 {[%clk 0:03:14.9]} 19. Ne6 {[%clk 0:03:29.5]} 19...
Qh4 {[%clk 0:03:06.3]} 20. Qf3 {[%clk 0:03:23.5]} 20... Ng4 {[%clk 0:03:00.1]}
21. Qh3 {[%clk 0:03:20.4]} 21... Qxh3 {[%clk 0:02:55.8]} 22. gxh3 {[%clk
0:03:18.9]} 22... Ne3 {[%clk 0:02:55]} 23. Rf2 {[%clk 0:03:10.2]} 23... Na6
{[%clk 0:02:50.3]} 24. Nd1 {[%clk 0:03:06.9]} 24... Nxd1 {[%clk 0:02:41.8]} 25.
Rxd1 {[%clk 0:03:05]} 25... Rad8 {[%clk 0:02:30.2]} 26. Rg2 {[%clk 0:02:53.8]}
26... Rxe6 {[%clk 0:02:26.7]} 27. Rdd2 {[%clk 0:02:36.7]} 27... Rg6 {[%clk
0:02:24.4]} 28. Rxg6 {[%clk 0:02:31.2]} 28... hxg6 {[%clk 0:02:24.3]} 29. Kf2
{[%clk 0:02:26.7]} 29... Nb8 {[%clk 0:02:08.2]} 30. Kf3 {[%clk 0:02:25.1]} 30...
Nd7 {[%clk 0:02:06.6]} 31. c5 {[%clk 0:02:19.3]} 31... Nf6 {[%clk 0:02:00.8]}
32. b4 {[%clk 0:02:15.8]} 32... Nh5 {[%clk 0:01:53.6]} 33. b5 {[%clk 0:02:11.8]}
33... Ng3 {[%clk 0:01:44.9]} 34. d6 {[%clk 0:02:06.6]} 34... cxd6 {[%clk
0:01:43.9]} 35. cxd6 {[%clk 0:02:05.4]} 35... Kf7 {[%clk 0:01:42.6]} 36. d7
{[%clk 0:01:58.4]} 36... Ke6 {[%clk 0:01:40.9]} 37. Rd6+ {[%clk 0:01:55.3]}
37... Kf7 {[%clk 0:01:38.9]} 38. Bb4 {[%clk 0:01:45.4]} 38... Bf8 {[%clk
0:01:36.3]} 39. Ba5 {[%clk 0:01:23.4]} 39... b6 {[%clk 0:01:35.1]} 40. Rd5
{[%clk 0:01:09.7]} 40... bxa5 {[%clk 0:01:31.5]} 41. Rxe5 {[%clk 0:01:08.6]}
41... Rxd7 {[%clk 0:01:21.7]} 42. Kxf4 {[%clk 0:01:07.4]} 42... Ne2+ {[%clk
0:01:17.8]} 43. Ke3 {[%clk 0:01:05.5]} 43... Nc3 {[%clk 0:01:15.6]} 44. Rg5
{[%clk 0:00:56.6]} 44... Nxa2 {[%clk 0:01:12]} 45. Rg1 {[%clk 0:00:53.1]} 45...
Nb4 {[%clk 0:01:09.8]} 46. Rf1+ {[%clk 0:00:51.1]} 46... Ke7 {[%clk 0:01:06.8]}
47. e5 {[%clk 0:00:47.4]} 47... Nd5+ {[%clk 0:00:49]} 48. Ke2 {[%clk 0:00:41.8]}
48... Nc3+ {[%clk 0:00:46.6]} 49. Ke3 {[%clk 0:00:39.5]} 49... Nxb5 {[%clk
0:00:46]} 50. Ra1 {[%clk 0:00:33.8]} 50... Nc3 {[%clk 0:00:35.4]} 51. Rxa5
{[%clk 0:00:31.3]} 51... Nd5+ {[%clk 0:00:35]} 52. Ke4 {[%clk 0:00:28.6]} 52...
Nc3+ {[%clk 0:00:33]} 53. Ke3 {[%clk 0:00:26.6]} 53... Ke6 {[%clk 0:00:25.6]}
54. Ra6+ {[%clk 0:00:22.6]} 54... Kxe5 {[%clk 0:00:21.5]} 55. Rxg6 {[%clk
0:00:21.8]} 55... Re7 {[%clk 0:00:18.4]} 56. Kd3 {[%clk 0:00:19.9]} 56... Nd5
{[%clk 0:00:17.1]} 57. Rg5+ {[%clk 0:00:17.2]} 57... Kf4 {[%clk 0:00:13.8]} 58.
Rxd5 {[%clk 0:00:15.6]} 58... Re3+ {[%clk 0:00:11.8]} 59. Kc4 {[%clk 0:00:14.4]}
59... Rxh3 {[%clk 0:00:10.1]} 60. Rd7 {[%clk 0:00:12.2]} 60... Ra3 {[%clk
0:00:08.6]} 61. Rf7+ {[%clk 0:00:09.9]} 61... Ke5 {[%clk 0:00:06.5]} 62. Rxf8
{[%clk 0:00:09.2]} 62... Kd6 {[%clk 0:00:06.1]} 63. Kb4 {[%clk 0:00:08]} 63...
Ra1 {[%clk 0:00:04.5]} 64. Rf6+ {[%clk 0:00:07.4]} 64... Kc7 {[%clk 0:00:03.5]}
65. Rf7+ {[%clk 0:00:06.5]} 65... Kb6 {[%clk 0:00:03.4]} 66. Kb3 {[%clk
0:00:05.5]} 66... Rb1+ {[%clk 0:00:03.3]} 67. Ka2 {[%clk 0:00:04.5]} 67... Re1
{[%clk 0:00:02.9]} 68. Kb3 {[%clk 0:00:03.5]} 68... Re2 {[%clk 0:00:02.8]} 69.
Rf6+ {[%clk 0:00:02.2]} 69... Kc5 {[%clk 0:00:02.7]} 70. Rf5+ {[%clk 0:00:01.4]}
70... Kd6 {[%clk 0:00:01.8]} 71. Rf6+ {[%clk 0:00:00.5]} 71... Kc7 {[%clk
0:00:01.7]} 0-1

[Event "Live Chess"]
[Site "Chess.com"]
[Date "2024.06.02"]
[Round "-"]
[White "ZatixMajor"]
[Black "seasidecastle27"]
[Result "0-1"]
[WhiteElo "2030"]
[BlackElo "1938"]
[TimeControl "300"]
[EndTime "3:19:13 PDT"]
[Termination "seasidecastle27 won by resignation"]

1. c4 {[%clk 0:04:57.6]} 1... e6 {[%clk 0:04:57.7]} 2. g3 {[%clk 0:04:56.4]}
2... d5 {[%clk 0:04:56.6]} 3. Bg2 {[%clk 0:04:55.9]} 3... Nf6 {[%clk 0:04:55.8]}
4. Nf3 {[%clk 0:04:55.4]} 4... Be7 {[%clk 0:04:55.1]} 5. O-O {[%clk 0:04:55]}
5... O-O {[%clk 0:04:54]} 6. b3 {[%clk 0:04:54.7]} 6... c5 {[%clk 0:04:50.6]} 7.
Bb2 {[%clk 0:04:53.1]} 7... Nc6 {[%clk 0:04:49.4]} 8. d3 {[%clk 0:04:52.3]} 8...
d4 {[%clk 0:04:47.9]} 9. e3 {[%clk 0:04:51.7]} 9... e5 {[%clk 0:04:46.8]} 10.
exd4 {[%clk 0:04:50.5]} 10... exd4 {[%clk 0:04:45.3]} 11. Re1 {[%clk 0:04:49.7]}
11... Re8 {[%clk 0:04:43.2]} 12. a3 {[%clk 0:04:48.5]} 12... a5 {[%clk 0:04:41]}
13. Nbd2 {[%clk 0:04:47]} 13... Bd6 {[%clk 0:04:36.6]} 14. b4 {[%clk 0:04:30.5]}
14... axb4 {[%clk 0:04:33]} 15. axb4 {[%clk 0:04:29]} 15... Rxa1 {[%clk
0:04:30.1]} 16. Qxa1 {[%clk 0:04:25.4]} 16... Rxe1+ {[%clk 0:04:26.2]} 17. Qxe1
{[%clk 0:04:24]} 17... Nxb4 {[%clk 0:04:25.3]} 18. Ne4 {[%clk 0:04:22.9]} 18...
Nxd3 {[%clk 0:04:14.1]} 19. Nxf6+ {[%clk 0:04:22.1]} 19... gxf6 {[%clk
0:04:06.7]} 20. Qd2 {[%clk 0:04:18.7]} 20... Nxb2 {[%clk 0:04:02.3]} 21. Qxb2
{[%clk 0:04:18.6]} 21... Qc7 {[%clk 0:03:50.4]} 22. Qd2 {[%clk 0:04:13.7]} 22...
Bf5 {[%clk 0:03:41.7]} 23. Nh4 {[%clk 0:04:12.2]} 23... Bg6 {[%clk 0:03:40.1]}
24. Bd5 {[%clk 0:04:08.3]} 24... Qb6 {[%clk 0:03:31.1]} 25. Nxg6 {[%clk
0:04:02.1]} 25... hxg6 {[%clk 0:03:27.6]} 26. Qh6 {[%clk 0:04:01.6]} 26... Qb1+
{[%clk 0:03:20.6]} 27. Kg2 {[%clk 0:03:59.8]} 27... Qf5 {[%clk 0:03:15.6]} 28.
h4 {[%clk 0:03:54.8]} 28... b5 {[%clk 0:03:12]} 29. h5 {[%clk 0:03:26.5]} 29...
Qxh5 {[%clk 0:03:01.6]} 30. Qxh5 {[%clk 0:03:25.7]} 30... gxh5 {[%clk
0:03:00.1]} 31. cxb5 {[%clk 0:03:25.6]} 31... Kg7 {[%clk 0:02:41.9]} 32. Kf3
{[%clk 0:03:17.6]} 32... f5 {[%clk 0:02:39.6]} 33. Bc4 {[%clk 0:03:15.3]} 33...
Kf6 {[%clk 0:02:37.5]} 34. Ke2 {[%clk 0:03:14.3]} 34... Kg6 {[%clk 0:02:29.9]}
35. Kd3 {[%clk 0:03:09.3]} 35... f6 {[%clk 0:02:28.5]} 36. Be6 {[%clk
0:03:04.2]} 36... Kg5 {[%clk 0:02:23.5]} 37. b6 {[%clk 0:02:59.8]} 37... f4
{[%clk 0:02:21.6]} 38. gxf4+ {[%clk 0:02:56.1]} 38... Kxf4 {[%clk 0:02:17.8]}
39. Kc4 {[%clk 0:02:55.5]} 39... Kf3 {[%clk 0:02:13.5]} 40. Kd5 {[%clk
0:02:54.7]} 40... Bb8 {[%clk 0:02:07.7]} 41. Kxc5 {[%clk 0:02:53.6]} 41... d3
{[%clk 0:02:06.4]} 42. Bc4 {[%clk 0:02:45.9]} 42... d2 {[%clk 0:02:04.7]} 43.
Bb3 {[%clk 0:02:42.9]} 43... h4 {[%clk 0:02:01.7]} 44. Kc6 {[%clk 0:02:40.5]}
44... h3 {[%clk 0:01:59.4]} 45. Bd1+ {[%clk 0:02:40]} 45... Kxf2 {[%clk
0:01:57.4]} 46. Kd7 {[%clk 0:02:38.5]} 46... h2 {[%clk 0:01:55.4]} 47. Kc8
{[%clk 0:02:37.4]} 47... Bf4 {[%clk 0:01:53.3]} 0-1

[Event "Live Chess"]
[Site "Chess.com"]
[Date "2024.06.02"]
[Round "-"]
[White "Queensandpawns"]
[Black "booktrunk"]
[Result "1-0"]
[WhiteElo "2242"]
[BlackElo "1500"]
[TimeControl "300"]
[EndTime "3:19:31 PDT"]
[Termination "Queensandpawns won by resignation"]

1. e4 {[%clk 0:04:59.7]} 1... b6 {[%clk 0:04:57.4]} 2. d4 {[%clk 0:04:58.2]}
2... Bb7 {[%clk 0:04:57.3]} 3. Ba6 {[%clk 0:04:57.4]} 3... Bxa6 {[%clk
0:04:50.3]} 4. Nc3 {[%clk 0:04:56.6]} 4... Bb7 {[%clk 0:04:48.5]} 5. Nf3 {[%clk
0:04:56.5]} 5... h6 {[%clk 0:04:46.3]} 6. O-O {[%clk 0:04:56.4]} 6... e6 {[%clk
0:04:44.4]} 7. Re1 {[%clk 0:04:56.3]} 7... Bb4 {[%clk 0:04:40.2]} 8. e5 {[%clk
0:04:56.2]} 8... Bxc3 {[%clk 0:04:38.6]} 9. bxc3 {[%clk 0:04:56.1]} 9... d6
{[%clk 0:04:34.6]} 10. exd6 {[%clk 0:04:55.8]} 10... Qxd6 {[%clk 0:04:32.6]} 11.
Ne5 {[%clk 0:04:54.8]} 11... Qe7 {[%clk 0:04:26.3]} 12. a4 {[%clk 0:04:50.7]}
12... Nd7 {[%clk 0:04:24.4]} 13. Ba3 {[%clk 0:04:50.1]} 13... Qf6 {[%clk
0:04:20.3]} 14. Ng4 {[%clk 0:04:42.3]} 14... Qg6 {[%clk 0:04:16.5]} 15. d5
{[%clk 0:04:38.4]} 15... Bxd5 {[%clk 0:04:13.3]} 16. Qxd5 {[%clk 0:04:37.5]}
16... h5 {[%clk 0:04:10.4]} 17. Qxa8+ {[%clk 0:04:36.8]} 1-0

[Event "Live Chess"]
[Site "Chess.com"]
[Date "2024.06.02"]
[Round "-"]
[White "AlexanderMatlak"]
[Black "Bunny55"]
[Result "1-0"]
[WhiteElo "2395"]
[BlackElo "1161"]
[TimeControl "300"]
[EndTime "3:19:36 PDT"]
[Termination "AlexanderMatlak won by resignation"]

1. c4 {[%clk 0:04:56.8]} 1... Nf6 {[%clk 0:04:56.7]} 2. Nf3 {[%clk 0:04:56.1]}
2... g6 {[%clk 0:04:56]} 3. Nc3 {[%clk 0:04:55.4]} 3... Bg7 {[%clk 0:04:55.7]}
4. g3 {[%clk 0:04:54.9]} 4... O-O {[%clk 0:04:54.5]} 5. Bg2 {[%clk 0:04:54.4]}
5... d6 {[%clk 0:04:51.4]} 6. O-O {[%clk 0:04:53]} 6... e5 {[%clk 0:04:50.3]} 7.
b4 {[%clk 0:04:52.2]} 7... Nc6 {[%clk 0:04:48.8]} 8. b5 {[%clk 0:04:51.7]} 8...
Ne7 {[%clk 0:04:47.5]} 9. c5 {[%clk 0:04:51.2]} 9... dxc5 {[%clk 0:04:44.2]} 10.
Nxe5 {[%clk 0:04:49.8]} 10... c6 {[%clk 0:04:40.6]} 11. bxc6 {[%clk 0:04:47.5]}
11... bxc6 {[%clk 0:04:39.6]} 12. Nxc6 {[%clk 0:04:46.4]} 12... Nxc6 {[%clk
0:04:37.5]} 13. Bxc6 {[%clk 0:04:46.2]} 13... Rb8 {[%clk 0:04:36]} 14. Bg2
{[%clk 0:04:45.8]} 1-0

[Event "Live Chess"]
[Site "Chess.com"]
[Date "2024.06.02"]
[Round "-"]
[White "NeilDruggan73"]
[Black "Bradfield133"]
[Result "1-0"]
[WhiteElo "1705"]
[BlackElo "1859"]
[TimeControl "300"]
[EndTime "3:19:54 PDT"]
[Termination "NeilDruggan73 won on time"]

1. d4 {[%clk 0:04:56.8]} 1... d6 {[%clk 0:04:57.8]} 2. Bg5 {[%clk 0:04:53.9]}
2... Nd7 {[%clk 0:04:55.6]} 3. e4 {[%clk 0:04:51.4]} 3... c5 {[%clk 0:04:45.3]}
4. Nf3 {[%clk 0:04:40.9]} 4... g6 {[%clk 0:04:33.8]} 5. Bc4 {[%clk 0:04:35.5]}
5... Bg7 {[%clk 0:04:30.3]} 6. c3 {[%clk 0:04:32.8]} 6... Qc7 {[%clk 0:04:04.9]}
7. Qb3 {[%clk 0:04:19.4]} 7... e6 {[%clk 0:03:56.3]} 8. Bxe6 {[%clk 0:04:04.1]}
8... fxe6 {[%clk 0:03:53.7]} 9. Qxe6+ {[%clk 0:04:03.7]} 9... Kf8 {[%clk
0:03:52.6]} 10. Be7+ {[%clk 0:03:34]} 10... Nxe7 {[%clk 0:03:46.9]} 11. Ng5
{[%clk 0:03:31.2]} 11... Ne5 {[%clk 0:03:45.6]} 12. Qb3 {[%clk 0:03:23.8]} 12...
c4 {[%clk 0:03:43.1]} 13. Qd1 {[%clk 0:03:16.6]} 13... Nd3+ {[%clk 0:03:41.8]}
14. Kf1 {[%clk 0:03:14.5]} 14... h6 {[%clk 0:03:40.3]} 15. Qf3+ {[%clk
0:03:12.8]} 15... Ke8 {[%clk 0:03:25.1]} 16. Qf7+ {[%clk 0:03:11.2]} 16... Kd8
{[%clk 0:03:21.1]} 17. Qxg7 {[%clk 0:03:03.4]} 17... Re8 {[%clk 0:02:52.3]} 18.
Nf7+ {[%clk 0:02:55]} 18... Kd7 {[%clk 0:02:50.3]} 19. Nd2 {[%clk 0:02:25.8]}
19... h5 {[%clk 0:02:22.7]} 20. Qf6 {[%clk 0:02:14]} 20... b5 {[%clk 0:01:37.2]}
21. d5 {[%clk 0:01:45.8]} 21... Qb6 {[%clk 0:01:09.2]} 22. Rb1 {[%clk
0:01:12.7]} 22... Qxf2+ {[%clk 0:00:38.6]} 23. Qxf2 {[%clk 0:01:09.5]} 23...
Nxf2 {[%clk 0:00:37.6]} 24. Kxf2 {[%clk 0:01:08.4]} 24... Rf8 {[%clk 0:00:36.8]}
25. Kg3 {[%clk 0:01:05.8]} 25... Rxf7 {[%clk 0:00:35.5]} 26. Rhf1 {[%clk
0:01:04.6]} 26... Rxf1 {[%clk 0:00:28.2]} 27. Rxf1 {[%clk 0:01:04.1]} 27... Ke8
{[%clk 0:00:26.9]} 28. Nf3 {[%clk 0:01:00.3]} 28... Bg4 {[%clk 0:00:20.5]} 29.
Nd4 {[%clk 0:00:58.2]} 29... a6 {[%clk 0:00:18.2]} 30. h3 {[%clk 0:00:56.8]}
30... Bd7 {[%clk 0:00:15.9]} 31. a3 {[%clk 0:00:52.9]} 31... Rb8 {[%clk
0:00:13.8]} 32. Kf4 {[%clk 0:00:51.8]} 32... a5 {[%clk 0:00:12.9]} 33. Kg5
{[%clk 0:00:47.9]} 33... b4 {[%clk 0:00:11.8]} 34. axb4 {[%clk 0:00:44.8]} 34...
axb4 {[%clk 0:00:10.8]} 35. Rf6 {[%clk 0:00:41.4]} 35... bxc3 {[%clk 0:00:08.1]}
36. bxc3 {[%clk 0:00:40.2]} 36... Rb2 {[%clk 0:00:06.7]} 37. Rxd6 {[%clk
0:00:37.6]} 37... Rxg2+ {[%clk 0:00:04.7]} 38. Kh6 {[%clk 0:00:34]} 38... Rg3
{[%clk 0:00:02.8]} 39. Ne6 {[%clk 0:00:28.3]} 39... Bxe6 {[%clk 0:00:00.9]} 40.
Rxe6 {[%clk 0:00:27.1]} 1-0

[Event "Live Chess"]
[Site "Chess.com"]
[Date "2024.06.02"]
[Round "-"]
[White "Bunny55"]
[Black "Queensandpawns"]
[Result "0-1"]
[WhiteElo "1161"]
[BlackElo "2242"]
[TimeControl "300"]
[EndTime "3:20:25 PDT"]
[Termination "Queensandpawns won by resignation"]

1. e4 {[%clk 0:04:57.1]} 1... d5 {[%clk 0:04:59.2]} 2. exd5 {[%clk 0:04:54.9]}
2... c6 {[%clk 0:04:59.1]} 3. dxc6 {[%clk 0:04:52.5]} 3... Nxc6 {[%clk 0:04:59]}
4. Nc3 {[%clk 0:04:50.9]} 4... e5 {[%clk 0:04:58.3]} 5. Nf3 {[%clk 0:04:49.2]}
5... Bc5 {[%clk 0:04:58.1]} 6. d4 {[%clk 0:04:46.3]} 6... exd4 {[%clk
0:04:57.4]} 7. Nxd4 {[%clk 0:04:44.8]} 7... Qxd4 {[%clk 0:04:55.8]} 8. Qxd4
{[%clk 0:04:42.7]} 8... Nxd4 {[%clk 0:04:55.7]} 9. Be3 {[%clk 0:04:40.9]} 9...
Nxc2+ {[%clk 0:04:54.9]} 10. Ke2 {[%clk 0:04:35.2]} 10... Bxe3 {[%clk
0:04:52.6]} 11. fxe3 {[%clk 0:04:33.7]} 11... Nxa1 {[%clk 0:04:52.1]} 12. g3
{[%clk 0:04:31.7]} 12... Bg4+ {[%clk 0:04:51.4]} 0-1

[Event "Live Chess"]
[Site "Chess.com"]
[Date "2024.06.02"]
[Round "-"]
[White "GwaryTek"]
[Black "wadsy27"]
[Result "0-1"]
[WhiteElo "1863"]
[BlackElo "2573"]
[TimeControl "300"]
[EndTime "3:20:29 PDT"]
[Termination "wadsy27 won on time"]

1. d4 {[%clk 0:04:54.7]} 1... Nf6 {[%clk 0:04:58.1]} 2. c4 {[%clk 0:04:52.1]}
2... c5 {[%clk 0:04:58]} 3. d5 {[%clk 0:04:51]} 3... e6 {[%clk 0:04:57.6]} 4.
Nc3 {[%clk 0:04:49.6]} 4... exd5 {[%clk 0:04:57.3]} 5. cxd5 {[%clk 0:04:49.5]}
5... d6 {[%clk 0:04:56.9]} 6. e4 {[%clk 0:04:46.3]} 6... g6 {[%clk 0:04:56.3]}
7. f3 {[%clk 0:04:43.8]} 7... Bg7 {[%clk 0:04:55.1]} 8. Bg5 {[%clk 0:04:42.4]}
8... a6 {[%clk 0:04:46]} 9. a4 {[%clk 0:04:40.8]} 9... O-O {[%clk 0:04:43.4]}
10. Qd2 {[%clk 0:04:39.1]} 10... Nbd7 {[%clk 0:04:42.2]} 11. Nh3 {[%clk
0:04:37]} 11... Qa5 {[%clk 0:04:40.8]} 12. Ra3 {[%clk 0:04:32.6]} 12... Qb4
{[%clk 0:04:30.7]} 13. a5 {[%clk 0:04:21.8]} 13... b5 {[%clk 0:04:29.6]} 14.
axb6 {[%clk 0:04:17.2]} 14... Nxb6 {[%clk 0:04:27.5]} 15. Nf2 {[%clk 0:03:58.9]}
15... Nc4 {[%clk 0:04:07.3]} 16. Bxc4 {[%clk 0:03:47.9]} 16... Qxc4 {[%clk
0:04:07.2]} 17. Ra4 {[%clk 0:03:37.1]} 17... Qb3 {[%clk 0:04:05.4]} 18. Ra3
{[%clk 0:03:34.4]} 18... Qb6 {[%clk 0:04:02.1]} 19. O-O {[%clk 0:03:31.6]} 19...
Bd7 {[%clk 0:04:01.3]} 20. Rfa1 {[%clk 0:03:14.6]} 20... Rfb8 {[%clk 0:03:43.7]}
21. Nfd1 {[%clk 0:02:54.1]} 21... Ne8 {[%clk 0:03:36.8]} 22. Be3 {[%clk
0:02:47.6]} 22... Nc7 {[%clk 0:03:35.5]} 23. Na4 {[%clk 0:01:38.5]} 23... Qb4
{[%clk 0:03:30.5]} 24. Nac3 {[%clk 0:01:02.5]} 24... Nb5 {[%clk 0:03:05.7]} 25.
Ra4 {[%clk 0:00:36.7]} 25... Qb3 {[%clk 0:03:03.7]} 26. h3 {[%clk 0:00:22]}
26... Nxc3 {[%clk 0:03:01.5]} 27. bxc3 {[%clk 0:00:17.4]} 27... Bxa4 {[%clk
0:03:00]} 0-1